fUST/lending_fUST_20250623
["ID","MTS","AMOUNT","RATE_DAILY","PERIOD"]
[367063133,1750643443479,-460.0,0.00021917,2]
[367063135,1750643443490,-460.0,0.00021917,2]
[367063137,1750643443499,-460.0,0.00021917,2]
[367063139,1750643443508,-460.0,0.00021917,2]
[367063141,1750643443518,-495.94,0.00021917,2]
[367063143,1750643443527,-460.0,0.00021917,2]
[367063145,1750643443537,-462.56135316,0.00021917,2]
[367063147,1750643443546,-460.0,0.00021917,2]
[367063149,1750643443556,-460.0,0.00021917,2]
[367063151,1750643443565,-460.0,0.00021917,2]
[367063153,1750643443575,-427.68469553,0.00021917,2]
[367063155,1750643443584,-460.0,0.00021917,2]
[367063157,1750643443593,-460.0,0.00021917,2]
[367063159,1750643443602,-1759.97,0.00021917,2]
[367063161,1750643443612,-5314.66,0.00021917,2]
[367063162,1750643443621,-460.0,0.00021917,2]
[367063165,1750643443631,-460.0,0.00021917,2]
[367063166,1750643443640,-460.0,0.00021917,2]
[367063168,1750643443649,-460.0,0.00021917,2]
[367063170,1750643443658,-460.0,0.00021917,2]
[367063173,1750643443669,-460.0,0.00021917,2]
[367063175,1750643443679,-465.81,0.00021917,2]
[367063176,1750643443689,-460.0,0.00021917,2]
[367063178,1750643443698,-463.98267855,0.00021917,2]
[367063180,1750643443707,-460.0,0.00021917,2]
[367063182,1750643443716,-702.46,0.00021917,2]
[367063184,1750643443726,-460.0,0.00021917,2]
[367063186,1750643443735,-636.12,0.00021917,2]
[367063188,1750643443744,-1169.57,0.00021917,2]
[367063190,1750643443753,-460.0,0.00021917,2]
[367063192,1750643443762,-460.0,0.00021917,2]
[367063194,1750643443772,-436.7836657,0.00021917,2]
[367063196,1750643443781,-460.0,0.00021917,2]
[367063198,1750643443791,-460.0,0.00021917,2]
[367063200,1750643443800,-158.50184418,0.00021917,2]
[367063202,1750643443809,-460.0,0.00021917,2]
[367063204,1750643443818,-460.0,0.00021917,2]
[367063206,1750643443828,-460.0,0.00021917,2]
[367063208,1750643443837,-460.0,0.00021917,2]
[367063210,1750643443846,-460.0,0.00021917,2]
[367063212,1750643443855,-460.0,0.00021917,2]
[367063214,1750643443864,-793.4,0.00021917,2]
[367063216,1750643443874,-669.26,0.00021917,2]
[367063218,1750643443883,-769.26,0.00021917,2]
[367063220,1750643443892,-598.27,0.00021917,2]
[367063222,1750643443901,-1152.86,0.00021917,2]
[367063224,1750643443910,-460.0,0.00021917,2]
[367063226,1750643443919,-460.0,0.00021917,2]
[367063228,1750643443930,-548.36,0.00021917,2]
[367063230,1750643443939,-460.0,0.00021917,2]
[367063232,1750643443949,-460.0,0.00021917,2]
[367063234,1750643443958,-397.36263938,0.00021917,2]
[367063236,1750643443968,-460.0,0.00021917,2]
[367063238,1750643443977,-2745.42,0.00021917,2]
[367063240,1750643443986,-460.0,0.00021917,2]
[367063242,1750643443995,-460.0,0.00021917,2]
[367063244,1750643444004,-759.13,0.00021917,2]
[367063246,1750643444014,-460.0,0.00021917,2]
[367063248,1750643444023,-460.0,0.00021917,2]
[367063250,1750643444032,-460.0,0.00021917,2]
[367063252,1750643444041,-460.0,0.00021917,2]
[367063254,1750643444050,-460.0,0.00021917,2]
[367063256,1750643444059,-460.0,0.00021917,2]
[367063258,1750643444068,-1868.32,0.00021917,2]
[367063260,1750643444077,-460.0,0.00021917,2]
[367063262,1750643444087,-460.0,0.00021917,2]
[367063264,1750643444096,-879.88,0.00021917,2]
[367063266,1750643444106,-300.71606931,0.00021917,2]
[367063268,1750643444116,-470.21,0.00021917,2]
[367063270,1750643444125,-1116.12,0.00021917,2]
[367063272,1750643444134,-460.0,0.00021917,2]
[367063274,1750643444143,-460.0,0.00021917,2]
[367063276,1750643444153,-5655.55,0.00021917,2]
[367063278,1750643444162,-1168.17,0.00021917,2]
[367063280,1750643444171,-460.0,0.00021917,2]
[367063282,1750643444180,-460.0,0.00021917,2]
[367063284,1750643444190,-460.0,0.00021917,2]
[367063286,1750643444199,-931.79,0.00021917,2]
[367063288,1750643444209,-460.0,0.00021917,2]
[367063290,1750643444219,-460.0,0.00021917,2]
[367063292,1750643444229,-460.0,0.00021917,2]
[367063294,1750643444239,-460.0,0.00021917,2]
[367063296,1750643444248,-170.53934948,0.00021917,2]
[367063299,1750643444259,-460.0,0.00021917,2]
[367063300,1750643444268,-460.0,0.00021917,2]
[367063302,1750643444277,-460.0,0.00021917,2]
[367063304,1750643444286,-460.0,0.00021917,2]
[367063307,1750643444296,-1786.02,0.00021917,2]
[367063308,1750643444305,-460.0,0.00021917,2]
[367063310,1750643444314,-460.0,0.00021917,2]
[367063312,1750643444323,-469.23,0.00021917,2]
[367063314,1750643444333,-460.0,0.00021917,2]
[367063317,1750643444342,-593.61,0.00021917,2]
[367063319,1750643444355,-1292.58,0.00021917,2]
[367063320,1750643444365,-460.0,0.00021917,2]
[367063322,1750643444374,-460.0,0.00021917,2]
[367063324,1750643444383,-460.0,0.00021917,2]
[367063326,1750643444393,-460.0,0.00021917,2]
[367063328,1750643444402,-460.0,0.00021917,2]
[367063330,1750643444411,-460.0,0.00021917,2]
[367063332,1750643444420,-460.0,0.00021917,2]
[367063334,1750643444430,-460.0,0.00021917,2]
[367063336,1750643444439,-1103.8,0.00021917,2]
[367063338,1750643444448,-460.0,0.00021917,2]
[367063340,1750643444457,-797.25,0.00021917,2]
[367063342,1750643444467,-460.0,0.00021917,2]
[367063344,1750643444476,-4991.63,0.00021917,2]
[367063346,1750643444485,-460.0,0.00021917,2]
[367063348,1750643444494,-460.0,0.00021917,2]
[367063350,1750643444504,-460.0,0.00021917,2]
[367063352,1750643444514,-460.0,0.00021917,2]
[367063354,1750643444523,-460.0,0.00021917,2]
[367063356,1750643444532,-460.0,0.00021917,2]
[367063358,1750643444541,-460.0,0.00021917,2]
[367063360,1750643444550,-370.46710537,0.00021917,2]
[367063362,1750643444560,-460.0,0.00021917,2]
[367063364,1750643444569,-460.0,0.00021917,2]
[367063366,1750643444578,-179.2881602,0.00021917,2]
[367063368,1750643444587,-460.0,0.00021917,2]
[367063370,1750643444597,-460.0,0.00021917,2]
[367063372,1750643444606,-796.85,0.00021917,2]
[367063374,1750643444616,-460.0,0.00021917,2]
[367063376,1750643444625,-460.0,0.00021917,2]
[367063378,1750643444635,-899.3,0.00021917,2]
[367063380,1750643444644,-460.0,0.00021917,2]
[367063382,1750643444653,-3040.81,0.00021917,2]
[367063383,1750643444662,-460.0,0.00021917,2]
[367063384,1750643444671,-611.36,0.00021917,2]
[367063385,1750643444681,-467.78214068,0.00021917,2]
[367063386,1750643444690,-842.32,0.00021917,2]
[367063387,1750643444700,-719.23,0.00021917,2]
[367063388,1750643444709,-2378.77,0.00021917,2]
[367063389,1750643444718,-460.0,0.00021917,2]
[367063390,1750643444727,-1182.04,0.00021917,2]
[367063391,1750643444736,-460.0,0.00021917,2]
[367063392,1750643444745,-460.0,0.00021917,2]
[367063393,1750643444754,-460.0,0.00021917,2]
[367063394,1750643444763,-460.0,0.00021917,2]
[367063395,1750643444772,-348.50355534,0.00021917,2]
[367063396,1750643444781,-750.62,0.00021917,2]
[367063397,1750643444790,-460.0,0.00021917,2]
[367063398,1750643444800,-460.0,0.00021917,2]
[367063399,1750643444809,-2903.14,0.00021917,2]
[367063400,1750643444819,-1273.75,0.00021917,2]
[367063401,1750643444828,-460.0,0.00021917,2]
[367063402,1750643444836,-3720.57,0.00021917,2]
[367063403,1750643444845,-460.0,0.00021917,2]
[367063404,1750643444855,-460.0,0.00021917,2]
[367063405,1750643444864,-467.32159034,0.00021917,2]
[367063406,1750643444873,-7880.51,0.00021917,2]
[367063407,1750643444882,-460.0,0.00021917,2]
[367063409,1750643444891,-460.0,0.00021917,2]
[367063411,1750643444900,-460.0,0.00021917,2]
[367063413,1750643444911,-460.0,0.00021917,2]
[367063415,1750643444921,-728.46,0.00021917,2]
[367063417,1750643444931,-460.0,0.00021917,2]
[367063419,1750643444940,-646.35,0.00021917,2]
[367063421,1750643444950,-460.0,0.00021917,2]
[367063423,1750643444959,-460.0,0.00021917,2]
[367063425,1750643444969,-496.63,0.00021917,2]
[367063427,1750643444978,-460.0,0.00021917,2]
[367063430,1750643444990,-480.90958071,0.00021917,2]
[367063432,1750643445001,-2015.88,0.00021917,2]
[367063433,1750643445010,-486.27,0.00021917,2]
[367063436,1750643445020,-460.0,0.00021917,2]
[367063438,1750643445031,-1578.25,0.00021917,2]
[367063440,1750643445041,-460.0,0.00021917,2]
[367063442,1750643445050,-1411.8,0.00021917,2]
[367063444,1750643445061,-462.51835673,0.00021917,2]
[367063446,1750643445070,-413.42126971,0.00021917,2]
[367063448,1750643445081,-460.0,0.00021917,2]
[367063450,1750643445090,-2289.62,0.00021917,2]
[367063451,1750643445099,-460.0,0.00021917,2]
[367063453,1750643445108,-288.99757411,0.00021917,2]
[367063455,1750643445118,-460.0,0.00021917,2]
[367063457,1750643445127,-9527.3,0.00021917,2]
[367063459,1750643445136,-460.0,0.00021917,2]
[367063461,1750643445146,-597.68506374,0.00021917,2]
[367063463,1750643445156,-460.0,0.00021917,2]
[367063465,1750643445165,-460.0,0.00021917,2]
[367063467,1750643445174,-1248.08,0.00021917,2]
[367063470,1750643445186,-460.0,0.00021917,2]
[367063472,1750643445195,-901.97,0.00021917,2]
[367063473,1750643445204,-471.3,0.00021917,2]
[367063475,1750643445214,-460.0,0.00021917,2]
[367063478,1750643445224,-1236.26,0.00021917,2]
[367063479,1750643445233,-552.30136842,0.00021917,2]
[367063481,1750643445242,-460.0,0.00021917,2]
[367063483,1750643445252,-965.68,0.00021917,2]
[367063485,1750643445261,-460.0,0.00021917,2]
[367063487,1750643445270,-460.0,0.00021917,2]
[367063489,1750643445280,-460.0,0.00021917,2]
[367063491,1750643445289,-488.45,0.00021917,2]
[367063493,1750643445299,-2572.22,0.00021917,2]
[367063495,1750643445308,-460.0,0.00021917,2]
[367063497,1750643445318,-460.0,0.00021917,2]
[367063499,1750643445328,-460.0,0.00021917,2]
[367063501,1750643445337,-560.77,0.00021917,2]
[367063503,1750643445349,-2109.58,0.00021917,2]
[367063505,1750643445359,-17550.64,0.00021917,2]
[367063507,1750643445369,-580.12,0.00021917,2]
[367063509,1750643445378,-460.0,0.00021917,2]
[367063511,1750643445388,-460.0,0.00021917,2]
[367063513,1750643445398,-460.0,0.00021917,2]
[367063515,1750643445408,-460.0,0.00021917,2]
[367063517,1750643445420,-460.0,0.00021917,2]
[367063519,1750643445430,-463.63,0.00021917,2]
[367063521,1750643445440,-516.94,0.00021917,2]
[367063523,1750643445450,-500.0,0.00021917,2]
[367063525,1750643445460,-460.0,0.00021917,2]
[367063527,1750643445470,-1157.14,0.00021917,2]
[367063529,1750643445479,-460.0,0.00021917,2]
[367063531,1750643445490,-6389.9,0.00021917,2]
[367063533,1750643445502,-460.0,0.00021917,2]
[367063536,1750643445512,-1466.63,0.00021917,2]
[367063539,1750643445521,-4916.9,0.00021917,2]
[367063542,1750643445531,-475.71,0.00021917,2]
[367063545,1750643445541,-460.0,0.00021917,2]
[367063548,1750643445550,-1162.21,0.00021917,2]
[367063551,1750643445559,-460.0,0.00021917,2]
[367063555,1750643445569,-428.45388935,0.00021917,2]
[367063559,1750643445578,-817.36,0.00021917,2]
[367063561,1750643445588,-3175.28,0.00021917,2]
[367063563,1750643445598,-1794.77,0.00021917,2]
[367063565,1750643445607,-3027.25,0.00021917,2]
[367063568,1750643445617,-460.0,0.00021917,2]
[367063569,1750643445626,-460.0,0.00021917,2]
[367063571,1750643445636,-1607.57,0.00021917,2]
[367063574,1750643445646,-390.37632446,0.00021917,2]
[367063576,1750643445656,-460.0,0.00021917,2]
[367063578,1750643445665,-460.0,0.00021917,2]
[367063579,1750643445675,-460.0,0.00021917,2]
[367063581,1750643445684,-460.0,0.00021917,2]
[367063583,1750643445693,-706.73,0.00021917,2]
[367063585,1750643445703,-1570.67,0.00021917,2]
[367063587,1750643445712,-569.08,0.00021917,2]
[367063589,1750643445721,-460.0,0.00021917,2]
[367063591,1750643445731,-776.4,0.00021917,2]
[367063593,1750643445740,-477.27,0.00021917,2]
[367063595,1750643445750,-1261.9,0.00021917,2]
[367063597,1750643445759,-460.0,0.00021917,2]
[367063599,1750643445768,-460.0,0.00021917,2]
[367063601,1750643445777,-460.0,0.00021917,2]
[367063603,1750643445787,-460.0,0.00021917,2]
[367063605,1750643445796,-460.0,0.00021917,2]
[367063607,1750643445806,-4995.37,0.00021917,2]
[367063609,1750643445815,-460.0,0.00021917,2]
[367063611,1750643445825,-460.0,0.00021917,2]
[367063613,1750643445835,-655.0,0.00021917,2]
[367063615,1750643445844,-1793.91,0.00021917,2]
[367063617,1750643445854,-362.22734498,0.00021917,2]
[367063619,1750643445863,-460.0,0.00021917,2]
[367063621,1750643445873,-460.0,0.00021917,2]
[367063623,1750643445882,-460.0,0.00021917,2]
[367063625,1750643445891,-460.0,0.00021917,2]
[367063627,1750643445902,-460.0,0.00021917,2]
[367063629,1750643445912,-557.78209572,0.00021917,2]
[367063631,1750643445922,-460.0,0.00021917,2]
[367063633,1750643445931,-551.33074097,0.00021917,2]
[367063635,1750643445941,-925.56,0.00021917,2]
[367063637,1750643445951,-905.96,0.00021917,2]
[367063639,1750643445961,-2185.32,0.00021917,2]
[367063641,1750643445971,-460.0,0.00021917,2]
[367063643,1750643445981,-706.24,0.00021917,2]
[367063645,1750643445991,-460.0,0.00021917,2]
[367063647,1750643446000,-606.06,0.00021917,2]
[367063649,1750643446010,-918.67,0.00021917,2]
[367063665,1750643446019,-460.0,0.00021917,2]
[367063670,1750643446189,-460.0,0.00021917,2]
[367063672,1750643446199,-460.0,0.00021917,2]
[367063674,1750643446209,-1047.27,0.00021917,2]
[367063676,1750643446219,-314.17734777,0.00021917,2]
[367063678,1750643446229,-460.0,0.00021917,2]
[367063680,1750643446239,-512.41,0.00021917,2]
[367063682,1750643446249,-460.0,0.00021917,2]
[367063684,1750643446258,-460.0,0.00021917,2]
[367063686,1750643446268,-481.03301258,0.00021917,2]
[367063688,1750643446279,-2214.46,0.00021917,2]
[367063690,1750643446288,-460.0,0.00021917,2]
[367063692,1750643446298,-460.0,0.00021917,2]
[367063694,1750643446308,-1356.33,0.00021917,2]
[367063696,1750643446317,-460.0,0.00021917,2]
[367063698,1750643446328,-460.0,0.00021917,2]
[367063700,1750643446338,-5788.6,0.00021917,2]
[367063702,1750643446350,-1543.11,0.00021917,2]
[367063704,1750643446360,-460.0,0.00021917,2]
[367063706,1750643446369,-460.0,0.00021917,2]
[367063708,1750643446379,-460.0,0.00021917,2]
[367063710,1750643446389,-843.31,0.00021917,2]
[367063712,1750643446398,-460.0,0.00021917,2]
[367063714,1750643446408,-460.0,0.00021917,2]
[367063716,1750643446418,-460.0,0.00021917,2]
[367063718,1750643446429,-460.0,0.00021917,2]
[367063721,1750643446439,-460.0,0.00021917,2]
[367063723,1750643446449,-1524.82,0.00021917,2]
[367063725,1750643446459,-461.59,0.00021917,2]
[367063727,1750643446469,-460.0,0.00021917,2]
[367063729,1750643446479,-460.0,0.00021917,2]
[367063731,1750643446488,-8345.86,0.00021917,2]
[367063733,1750643446497,-566.75408425,0.00021917,2]
[367063735,1750643446507,-460.0,0.00021917,2]
[367063737,1750643446518,-500.0,0.00021917,2]
[367063739,1750643446528,-778.93,0.00021917,2]
[367063741,1750643446537,-460.0,0.00021917,2]
[367063743,1750643446547,-6295.86,0.00021917,2]
[367063745,1750643446557,-460.0,0.00021917,2]
[367063747,1750643446567,-460.0,0.00021917,2]
[367063749,1750643446576,-460.0,0.00021917,2]
[367063751,1750643446586,-471.31910393,0.00021917,2]
[367063753,1750643446595,-477.78,0.00021917,2]
[367063755,1750643446605,-576.88925919,0.00021918,7]
[367063757,1750643446615,-150.12483282,0.00021918,2]
[367063759,1750643446624,-2534.87902442,0.00021934,6]
[367063761,1750643446635,-375.76229243,0.00021941,2]
[367063763,1750643446644,-13402.78846344,0.00021969,2]
[367063765,1750643446654,-500.0,0.00021973,2]
[367063767,1750643446663,-500.59772623,0.00021973,2]
[367063769,1750643446674,-500.0,0.00021973,2]
[367063771,1750643446684,-555.32666761,0.00021973,2]
[367063773,1750643446694,-546.01582314,0.00021973,2]
[367063775,1750643446703,-500.72944794,0.00021973,2]
[367063777,1750643446713,-616.05065136,0.00021973,2]
[367063779,1750643446723,-500.0,0.00021973,2]
[367063781,1750643446732,-500.32103874,0.00021973,2]
[367063783,1750643446742,-289.35315964,0.00021973,2]
[367063785,1750643446751,-500.72984294,0.00021973,2]
[367063787,1750643446761,-598.01965592,0.00021973,2]
[367063789,1750643446772,-500.44290652,0.00021973,2]
[367063791,1750643446782,-500.0,0.00021973,2]
[367063793,1750643446791,-500.0,0.00021973,2]
[367063795,1750643446801,-500.0,0.00021973,2]
[367063797,1750643446811,-500.0,0.00021973,2]
[367063799,1750643446820,-513.10036916,0.00021973,2]
[367063801,1750643446830,-500.0,0.00021973,2]
[367063803,1750643446839,-502.70267452,0.00021973,2]
[367063805,1750643446848,-500.0,0.00021973,2]
[367063807,1750643446858,-500.0,0.00021973,2]
[367063809,1750643446867,-500.0,0.00021973,2]
[367063811,1750643446876,-516.46027025,0.00021973,2]
[367063813,1750643446885,-500.0,0.00021973,2]
[367063815,1750643446895,-362.30481107,0.00021973,2]
[367063817,1750643446906,-500.0,0.00021973,2]
[367063819,1750643446916,-500.0,0.00021973,2]
[367063821,1750643446925,-500.0,0.00021973,2]
[367063823,1750643446936,-501.3412118,0.00021973,2]
[367063825,1750643446946,-500.0,0.00021973,2]
[367063827,1750643446955,-500.0,0.00021973,2]
[367063829,1750643446964,-500.0,0.00021973,2]
[367063831,1750643446974,-500.0,0.00021973,2]
[367063833,1750643446983,-500.0,0.00021973,2]
[367063835,1750643446993,-612.84511257,0.00021973,2]
[367063837,1750643447005,-500.0,0.00021973,2]
[367063839,1750643447014,-326.38434502,0.00021973,2]
[367063841,1750643447024,-500.0,0.00021973,2]
[367063844,1750643447033,-500.0,0.00021973,2]
[367063846,1750643447043,-173.96972417,0.0002199,2]
[367063847,1750643447052,-51863.57190349,0.00022,4]
[367063850,1750643447062,-68729.44007114,0.00022,7]
[367066795,1750643549718,-160.0,0.00020942,2]
[367066796,1750643557319,-163.01618379,0.000218,3]
[367066797,1750643560149,-180.48467971,0.00021907,10]
[367066798,1750643569111,-236.03405117,0.00020942,2]
[367066799,1750643584243,-215.0,0.00020941,2]
[367066800,1750643590052,-85.0,0.00020941,2]
[367066801,1750643590082,-73.43263007,0.00020942,2]
[367066802,1750643594907,-167.31909194,0.00020316,2]
[367066803,1750643600893,427.0476885,0.000199,2]
[367066804,1750643636730,-151.0,0.00020314,2]
[367066805,1750643659875,284.698459,0.000199,2]
[367066806,1750643662197,-24.7119466,0.00020314,2]
[367066807,1750643662220,-103.46843068,0.00020316,2]
[367066808,1750643662243,-125.63760513,0.00020942,2]
[367066809,1750643697835,285.98025778,0.00025,120]
[367066810,1750643703124,-177.02203055,0.00020941,2]
[367066811,1750643713868,-226.67330297,0.00021907,10]
[367066812,1750643723519,-122.97796945,0.00020941,2]
[367066813,1750643723542,-92.36189818,0.00020941,2]
[367066814,1750643749889,1000.0,0.00025,30]
[367066815,1750643762277,-163.74806093,0.00020941,2]
[367066816,1750643901800,189.79897267,0.000199,2]
[367066817,1750643961449,150.0,0.000199,2]
[367066818,1750644069510,3440.60131669,0.00022,120]
[367066820,1750644202890,150.0,0.000199,2]
[367066821,1750644332085,-233.401806,0.00020362,2]
[367066822,1750644332106,-177.355339,0.00020716,2]
[367066823,1750644332127,-187.57983738,0.00020741,2]
[367066824,1750644332149,-300.0,0.0002094,2]
[367066825,1750644332170,-103.33316612,0.0002094,2]
[367066826,1750644339082,-540.39307888,0.0002094,2]
[367066828,1750644453124,-556.273755,0.0002094,2]
[367066829,1750644453146,-300.0,0.0002094,2]
[367066830,1750644453167,-300.0,0.00020941,2]
[367066831,1750644453188,-300.0,0.00020941,2]
[367066832,1750644453209,-8187.9025158,0.00020942,2]
[367066833,1750644454084,-2567.80582459,0.00020942,2]
[367066834,1750644501291,328.49483296,0.00019247,2]
[367066835,1750644504244,150.0,0.000199,2]
[367066836,1750644552108,-300.0,0.00020595,2]
[367066837,1750644552131,-24900.0,0.00020596,2]
[367066838,1750644552152,-1000.0,0.0002091,2]
[367066839,1750644552173,-1000.0,0.0002091,2]
[367066840,1750644552193,-287.72007325,0.0002114,2]
[367066841,1750644552215,-288.0,0.00021242,2]
[367066842,1750644552237,-724.76405364,0.00021271,2]
[367066843,1750644552259,-207.4,0.00021271,2]
[367066844,1750644552281,-288.0,0.00021285,2]
[367066845,1750644552303,-288.0,0.00021304,2]
[367066846,1750644559531,-229.53,0.00021399,2]
[367066847,1750644606994,207.4,0.00021271,2]
[367066861,1750644632286,-104.84111504,0.00021708,2]
[367066864,1750644638590,-142.37188496,0.00021708,2]
[367066865,1750644638599,-929.20325625,0.00021747,4]
[367066866,1750644638611,-1095.54657975,0.00021747,4]
[367066867,1750644638620,-300.0,0.00021795,2]
[367066868,1750644638629,-1200.0,0.00021795,2]
[367066869,1750644638638,-300.0,0.00021795,2]
[367066870,1750644638648,-836.98381621,0.000218,3]
[367066871,1750644638657,-5508.86126691,0.00021817,2]
[367066872,1750644638666,-2554.50078589,0.000219,6]
[367066873,1750644638676,-453.2312045,0.000219,2]
[367066874,1750644638685,-288.0,0.00021901,2]
[367066875,1750644638694,-505.42746328,0.00021903,2]
[367066876,1750644638703,-500.0,0.00021903,2]
[367066877,1750644638713,-502.16223553,0.00021903,2]
[367066878,1750644638722,-500.0,0.00021903,2]
[367066879,1750644638731,-517.32732296,0.00021903,2]
[367066880,1750644638741,-500.0,0.00021903,2]
[367066881,1750644638750,-218.53061446,0.00021903,2]
[367066882,1750644638759,-151.78316967,0.00021904,2]
[367066883,1750644638772,-152.96748886,0.00021904,2]
[367066884,1750644638781,-151.0,0.00021904,2]
[367066885,1750644638790,-500.0,0.00021904,2]
[367066886,1750644638800,-5000.0,0.00021904,2]
[367066887,1750644638809,-500.0,0.00021904,2]
[367066888,1750644638819,-500.0,0.00021904,2]
[367066889,1750644638828,-500.0,0.00021904,2]
[367066890,1750644638837,-500.0,0.00021904,2]
[367066891,1750644638847,-500.0,0.00021904,2]
[367066892,1750644638857,-500.0,0.00021904,2]
[367066893,1750644638866,-13374.06200854,0.00021904,2]
[367066894,1750644638876,-500.0,0.00021904,2]
[367066895,1750644638885,-500.0,0.00021904,2]
[367066896,1750644638895,-641.85,0.00021907,3]
[367066897,1750644638904,-320.92,0.00021907,3]
[367066898,1750644638914,-160.46,0.00021907,3]
[367066899,1750644638923,-481.42,0.00021907,3]
[367066900,1750644638932,-515.64389431,0.00021916,2]
[367066901,1750644638941,-500.0,0.00021916,2]
[367066902,1750644638950,-382.70341479,0.00021916,2]
[367066903,1750644638959,-500.0,0.00021916,2]
[367066904,1750644638969,-517.97537959,0.00021916,2]
[367066905,1750644638978,-500.0,0.00021916,7]
[367066906,1750644638988,-460.0,0.00021917,2]
[367066907,1750644638997,-460.0,0.00021917,2]
[367066908,1750644639006,-337.50114976,0.00021917,2]
[367066909,1750644639016,-296.85684112,0.00021917,2]
[367066910,1750644639026,-942.99,0.00021917,2]
[367066911,1750644639035,-460.0,0.00021917,2]
[367066912,1750644639044,-625.62,0.00021917,2]
[367066913,1750644639053,-444.25031917,0.00021917,2]
[367066914,1750644639062,-313.29227801,0.00021917,2]
[367066915,1750644639071,-460.0,0.00021917,2]
[367066916,1750644639080,-479.0201919,0.00021917,2]
[367066917,1750644639089,-458.03622257,0.00021917,2]
[367066918,1750644639099,-460.0,0.00021917,2]
[367066919,1750644639109,-460.0,0.00021917,2]
[367066920,1750644639118,-460.0,0.00021917,2]
[367066921,1750644639127,-460.0,0.00021917,2]
[367066922,1750644639137,-460.0,0.00021917,2]
[367066923,1750644639146,-460.0,0.00021917,2]
[367066924,1750644639156,-460.0,0.00021917,2]
[367066925,1750644639165,-460.0,0.00021917,2]
[367066926,1750644639174,-460.0,0.00021917,2]
[367066927,1750644639183,-460.0,0.00021917,2]
[367066928,1750644639192,-552.24507458,0.00021917,2]
[367066929,1750644639201,-460.0,0.00021917,2]
[367066930,1750644639210,-460.0,0.00021917,2]
[367066931,1750644639219,-1012.26,0.00021917,2]
[367066932,1750644639229,-460.0,0.00021917,2]
[367066933,1750644639239,-461.15655599,0.00021917,2]
[367066934,1750644639249,-460.0,0.00021917,2]
[367066935,1750644639258,-300.0,0.00021917,2]
[367066936,1750644639268,-460.0,0.00021917,2]
[367066937,1750644639277,-460.0,0.00021917,2]
[367066938,1750644639287,-460.0,0.00021917,2]
[367066939,1750644639297,-460.0,0.00021917,2]
[367066940,1750644639305,-350.0,0.00021917,2]
[367066941,1750644639315,-437.17930243,0.00021917,2]
[367066942,1750644639324,-460.0,0.00021917,2]
[367066943,1750644639333,-460.0,0.00021917,2]
[367066944,1750644639342,-460.0,0.00021917,2]
[367066945,1750644639351,-460.0,0.00021917,2]
[367066946,1750644639360,-471.78,0.00021917,2]
[367066947,1750644639369,-460.0,0.00021917,2]
[367066948,1750644639378,-431.85066836,0.00021917,2]
[367066949,1750644639386,-460.0,0.00021917,2]
[367066950,1750644639395,-277.41429085,0.00021917,2]
[367066951,1750644639405,-460.0,0.00021917,2]
[367066952,1750644639414,-500.0,0.00021917,2]
[367066953,1750644639424,-460.0,0.00021917,2]